[Event "*** SCC Grand Prix: Titled Tuesday Blitz"]
[Site "Chess.com"]
[Date "2020.08.11"]
[Round "3"]
[White "Msb2"]
[Black "JesseKraai"]
[Result "1-0"]
[WhiteElo "2794"]
[BlackElo "2542"]
[TimeControl "180+1"]
[EndTime "10:30:15 PDT"]
[Termination "Msb2 won on time"]

1. d4 {[%clk 0:03:00.9]} 1... d6 {[%clk 0:02:59.4]} 2. c4 {[%clk 0:03:01.5]}
2... e5 {[%clk 0:02:59.4]} 3. d5 {[%clk 0:03:01.2]} 3... f5 {[%clk 0:02:58.8]}
4. e4 {[%clk 0:03:01.2]} 4... Nf6 {[%clk 0:02:58.4]} 5. Nc3 {[%clk 0:03:01.3]}
5... g6 {[%clk 0:02:54.8]} 6. exf5 {[%clk 0:02:57]} 6... gxf5 {[%clk 0:02:54.3]}
7. f4 {[%clk 0:02:53.8]} 7... Bg7 {[%clk 0:02:45.3]} 8. Be2 {[%clk 0:02:51.7]}
8... O-O {[%clk 0:02:44.7]} 9. Nf3 {[%clk 0:02:52.1]} 9... Qe7 {[%clk
0:02:33.6]} 10. O-O {[%clk 0:02:48.4]} 10... Nbd7 {[%clk 0:02:33.6]} 11. Kh1
{[%clk 0:02:19.3]} 11... Nc5 {[%clk 0:02:30.2]} 12. Be3 {[%clk 0:02:12.9]} 12...
Nce4 {[%clk 0:02:20.9]} 13. Nxe4 {[%clk 0:02:01.4]} 13... Nxe4 {[%clk
0:02:12.6]} 14. Qc2 {[%clk 0:01:57]} 14... Bd7 {[%clk 0:02:10.8]} 15. Rae1
{[%clk 0:01:56.4]} 15... Rae8 {[%clk 0:02:09.6]} 16. Nd2 {[%clk 0:01:54.2]}
16... Qh4 {[%clk 0:01:59.2]} 17. Kg1 {[%clk 0:01:26.6]} 17... Kh8 {[%clk
0:01:52.1]} 18. Bd3 {[%clk 0:01:21.6]} 18... Nxd2 {[%clk 0:01:40.5]} 19. Qxd2
{[%clk 0:01:22.5]} 19... e4 {[%clk 0:01:40.7]} 20. Be2 {[%clk 0:01:18.3]} 20...
Rf6 {[%clk 0:01:31.8]} 21. Rf2 {[%clk 0:01:15.6]} 21... Rg6 {[%clk 0:01:30.9]}
22. g3 {[%clk 0:01:12.3]} 22... Rg8 {[%clk 0:01:28]} 23. Rg2 {[%clk 0:01:10.7]}
23... Qf6 {[%clk 0:01:25.6]} 24. b3 {[%clk 0:01:09.9]} 24... Qc3 {[%clk
0:01:11]} 25. Qxc3 {[%clk 0:01:08.9]} 25... Bxc3 {[%clk 0:01:10]} 26. Rd1 {[%clk
0:01:09.8]} 26... Kg7 {[%clk 0:01:06.1]} 27. Kf2 {[%clk 0:01:09.5]} 27... Kf8
{[%clk 0:01:01.6]} 28. Bd4 {[%clk 0:01:07.5]} 28... Bxd4+ {[%clk 0:01:00.3]} 29.
Rxd4 {[%clk 0:01:08.4]} 29... Ke7 {[%clk 0:01:00.3]} 30. Rd1 {[%clk 0:01:08.2]}
30... R6g7 {[%clk 0:00:59.5]} 31. Ke3 {[%clk 0:01:07.9]} 31... c5 {[%clk
0:00:54.2]} 32. Rdg1 {[%clk 0:01:06.9]} 32... a6 {[%clk 0:00:49.1]} 33. a4
{[%clk 0:01:04.9]} 33... Be8 {[%clk 0:00:45.7]} 34. h3 {[%clk 0:01:04.6]} 34...
h5 {[%clk 0:00:45.2]} 35. g4 {[%clk 0:01:01.4]} 35... hxg4 {[%clk 0:00:44.7]}
36. hxg4 {[%clk 0:01:01.9]} 36... Bd7 {[%clk 0:00:27.5]} 37. g5 {[%clk
0:00:53.6]} 37... Rh8 {[%clk 0:00:27.1]} 38. Rg3 {[%clk 0:00:52.3]} 38... Be8
{[%clk 0:00:24.4]} 39. a5 {[%clk 0:00:52.1]} 39... Rh2 {[%clk 0:00:23.1]} 40.
R1g2 {[%clk 0:00:51.3]} 40... Rh1 {[%clk 0:00:23]} 41. Rg1 {[%clk 0:00:48.1]}
41... Rh4 {[%clk 0:00:22.8]} 42. Bf1 {[%clk 0:00:46.7]} 42... Bg6 {[%clk
0:00:22.2]} 43. Rh3 {[%clk 0:00:44.3]} 43... Rgh7 {[%clk 0:00:20.8]} 44. Rgh1
{[%clk 0:00:44.1]} 44... Rxh3+ {[%clk 0:00:20.7]} 45. Rxh3 {[%clk 0:00:42.8]}
45... Rxh3+ {[%clk 0:00:21]} 46. Bxh3 {[%clk 0:00:43.7]} 46... Kd7 {[%clk
0:00:21.5]} 47. Kd2 {[%clk 0:00:41.9]} 47... Kc7 {[%clk 0:00:21.7]} 48. Kc3
{[%clk 0:00:41.8]} 48... b6 {[%clk 0:00:22.3]} 49. b4 {[%clk 0:00:27.3]} 49...
bxa5 {[%clk 0:00:18.9]} 50. bxa5 {[%clk 0:00:27.7]} 50... Kb7 {[%clk 0:00:18.7]}
51. Bf1 {[%clk 0:00:28.1]} 51... Ka7 {[%clk 0:00:18.8]} 52. Be2 {[%clk
0:00:28.5]} 52... Kb7 {[%clk 0:00:19.1]} 53. Kd2 {[%clk 0:00:28.5]} 53... Ka7
{[%clk 0:00:19.2]} 54. Ke1 {[%clk 0:00:28.5]} 54... Kb7 {[%clk 0:00:19.3]} 55.
Kf2 {[%clk 0:00:29.4]} 55... Kc7 {[%clk 0:00:19.6]} 56. Kg3 {[%clk 0:00:29.8]}
56... Kd7 {[%clk 0:00:19.9]} 57. Bd1 {[%clk 0:00:28.6]} 57... Ke7 {[%clk
0:00:17.9]} 58. Ba4 {[%clk 0:00:28.3]} 58... Be8 {[%clk 0:00:17.2]} 59. Bc6
{[%clk 0:00:26.2]} 59... Kf8 {[%clk 0:00:11.6]} 60. Bb7 {[%clk 0:00:25.2]} 1-0

[Event "*** SCC Grand Prix: Titled Tuesday Blitz"]
[Site "Chess.com"]
[Date "2020.08.11"]
[Round "3"]
[White "lelajavakhishvili"]
[Black "Fins0905"]
[Result "0-1"]
[WhiteElo "2406"]
[BlackElo "2638"]
[TimeControl "180+1"]
[EndTime "10:30:15 PDT"]
[Termination "Fins0905 won on time"]

1. d4 {[%clk 0:03:00.9]} 1... d5 {[%clk 0:02:54.2]} 2. c4 {[%clk 0:03:00.7]}
2... c6 {[%clk 0:02:53.9]} 3. Nf3 {[%clk 0:03:00.5]} 3... Nf6 {[%clk 0:02:53.5]}
4. e3 {[%clk 0:03:00.7]} 4... Bf5 {[%clk 0:02:52.5]} 5. Nc3 {[%clk 0:03:00.6]}
5... e6 {[%clk 0:02:52.4]} 6. Qb3 {[%clk 0:03:00.5]} 6... Qb6 {[%clk 0:02:46.9]}
7. c5 {[%clk 0:02:58.8]} 7... Qc7 {[%clk 0:02:45.9]} 8. Nh4 {[%clk 0:02:53.5]}
8... Bg6 {[%clk 0:02:40.8]} 9. Be2 {[%clk 0:02:50.2]} 9... Nbd7 {[%clk 0:02:40]}
10. Nxg6 {[%clk 0:02:45]} 10... hxg6 {[%clk 0:02:39.8]} 11. f4 {[%clk
0:02:45.1]} 11... b6 {[%clk 0:02:29.7]} 12. cxb6 {[%clk 0:02:36.9]} 12... axb6
{[%clk 0:02:30.6]} 13. O-O {[%clk 0:02:33.2]} 13... Be7 {[%clk 0:02:16.1]} 14.
Bd2 {[%clk 0:02:30.7]} 14... O-O {[%clk 0:02:15.2]} 15. Rfc1 {[%clk 0:02:29.3]}
15... Qa7 {[%clk 0:02:14.8]} 16. a4 {[%clk 0:02:26.4]} 16... Rfc8 {[%clk
0:02:09.5]} 17. Bf3 {[%clk 0:02:16.7]} 17... Ne8 {[%clk 0:02:04.3]} 18. Qd1
{[%clk 0:02:06.3]} 18... Nd6 {[%clk 0:01:59.1]} 19. b3 {[%clk 0:02:06]} 19... c5
{[%clk 0:01:41.2]} 20. Nb5 {[%clk 0:01:29.2]} 20... Nxb5 {[%clk 0:01:19]} 21.
axb5 {[%clk 0:01:30.1]} 21... Qb7 {[%clk 0:01:19.4]} 22. Bc3 {[%clk 0:01:10.7]}
22... cxd4 {[%clk 0:01:12.2]} 23. Bxd4 {[%clk 0:01:05.9]} 23... Bf6 {[%clk
0:01:04.5]} 24. b4 {[%clk 0:00:52.3]} 24... Be7 {[%clk 0:00:51.3]} 25. Qd2
{[%clk 0:00:46.7]} 25... Rxa1 {[%clk 0:00:46.7]} 26. Rxa1 {[%clk 0:00:46]} 26...
Qc7 {[%clk 0:00:42]} 27. e4 {[%clk 0:00:44]} 27... dxe4 {[%clk 0:00:32.3]} 28.
Bxe4 {[%clk 0:00:43.7]} 28... Bf6 {[%clk 0:00:29.3]} 29. Bc6 {[%clk 0:00:40.5]}
29... Rd8 {[%clk 0:00:24.8]} 30. Bxf6 {[%clk 0:00:32.3]} 30... Nxf6 {[%clk
0:00:23.7]} 31. Qe3 {[%clk 0:00:32.6]} 31... Nd5 {[%clk 0:00:16.3]} 32. Qe4
{[%clk 0:00:21.5]} 32... Nxf4 {[%clk 0:00:09.1]} 33. Rf1 {[%clk 0:00:14.7]}
33... Nd5 {[%clk 0:00:08.9]} 34. h3 {[%clk 0:00:13.6]} 34... Qd6 {[%clk
0:00:08.5]} 35. Qd4 {[%clk 0:00:12.5]} 35... Qxb4 {[%clk 0:00:07.3]} 36. Qe5
{[%clk 0:00:10.3]} 36... Qc5+ {[%clk 0:00:06.8]} 37. Kh1 {[%clk 0:00:10.1]}
37... Qd6 {[%clk 0:00:06.7]} 38. Qd4 {[%clk 0:00:09.8]} 38... Ne7 {[%clk
0:00:06.6]} 39. Qxb6 {[%clk 0:00:09.7]} 39... Rc8 {[%clk 0:00:07]} 40. Rc1
{[%clk 0:00:08.5]} 40... Qf4 {[%clk 0:00:06.7]} 41. Qc5 {[%clk 0:00:07.9]} 41...
Nf5 {[%clk 0:00:06.4]} 42. Qc4 {[%clk 0:00:06.6]} 42... Qe5 {[%clk 0:00:05.5]}
43. Qc5 {[%clk 0:00:06.1]} 43... Qg3 {[%clk 0:00:05]} 44. Qc3 {[%clk 0:00:05.7]}
44... Qf4 {[%clk 0:00:04.4]} 45. Qc4 {[%clk 0:00:05.2]} 45... Ng3+ {[%clk
0:00:04.7]} 46. Kg1 {[%clk 0:00:04.3]} 46... Ne2+ {[%clk 0:00:04.5]} 47. Qxe2
{[%clk 0:00:01.8]} 47... Qxc1+ {[%clk 0:00:05.1]} 48. Kh2 {[%clk 0:00:02.1]}
48... Qc5 {[%clk 0:00:05.2]} 49. Qe4 {[%clk 0:00:01.4]} 49... Rd8 {[%clk
0:00:05.1]} 50. Qf4 {[%clk 0:00:01.1]} 50... f6 {[%clk 0:00:04.7]} 0-1

[Event "*** SCC Grand Prix: Titled Tuesday Blitz"]
[Site "Chess.com"]
[Date "2020.08.11"]
[Round "3"]
[White "vovachesss"]
[Black "Xeniya2005"]
[Result "1-0"]
[WhiteElo "2586"]
[BlackElo "2360"]
[TimeControl "180+1"]
[EndTime "10:30:17 PDT"]
[Termination "vovachesss won by resignation"]

1. d4 {[%clk 0:02:57.4]} 1... Nf6 {[%clk 0:02:59]} 2. Bf4 {[%clk 0:02:56.8]}
2... d5 {[%clk 0:02:57]} 3. e3 {[%clk 0:02:55.3]} 3... c5 {[%clk 0:02:55.9]} 4.
c3 {[%clk 0:02:54.7]} 4... Nc6 {[%clk 0:02:55.6]} 5. Nd2 {[%clk 0:02:53.7]} 5...
Qb6 {[%clk 0:02:54.2]} 6. Qb3 {[%clk 0:02:48.5]} 6... c4 {[%clk 0:02:53]} 7. Qc2
{[%clk 0:02:48.6]} 7... g6 {[%clk 0:02:49.8]} 8. f3 {[%clk 0:02:45.5]} 8... Nh5
{[%clk 0:02:28.3]} 9. Bg5 {[%clk 0:02:45]} 9... h6 {[%clk 0:02:26.4]} 10. Bh4
{[%clk 0:02:45]} 10... Bg7 {[%clk 0:02:26]} 11. g4 {[%clk 0:02:31.1]} 11... Nf6
{[%clk 0:02:22.3]} 12. Bg3 {[%clk 0:02:31.4]} 12... e5 {[%clk 0:02:12.9]} 13.
O-O-O {[%clk 0:02:02]} 13... exd4 {[%clk 0:02:07.7]} 14. exd4 {[%clk 0:01:59.3]}
14... Be6 {[%clk 0:02:04.8]} 15. Ne2 {[%clk 0:01:57.9]} 15... O-O-O {[%clk
0:01:53.9]} 16. Nf4 {[%clk 0:01:56.8]} 16... Rhe8 {[%clk 0:01:50]} 17. h4 {[%clk
0:01:50.6]} 17... g5 {[%clk 0:01:41.4]} 18. hxg5 {[%clk 0:01:47.3]} 18... hxg5
{[%clk 0:01:40.9]} 19. Nxe6 {[%clk 0:01:37.4]} 19... Rxe6 {[%clk 0:01:39.3]} 20.
Qf5 {[%clk 0:01:37.9]} 20... Ne7 {[%clk 0:01:25.9]} 21. Qxg5 {[%clk 0:01:36.8]}
21... Rg8 {[%clk 0:01:25.3]} 22. Qf4 {[%clk 0:01:33.5]} 22... Ng6 {[%clk
0:01:18.5]} 23. Qg5 {[%clk 0:01:21.1]} 23... Rge8 {[%clk 0:00:58.5]} 24. f4
{[%clk 0:01:11.5]} 24... Qa5 {[%clk 0:00:48.3]} 25. f5 {[%clk 0:01:03.9]} 25...
Rb6 {[%clk 0:00:31.2]} 26. fxg6 {[%clk 0:00:46.4]} 26... Qxa2 {[%clk 0:00:29]}
27. Qf5+ {[%clk 0:00:46.5]} 27... Nd7 {[%clk 0:00:19.6]} 28. Qb1 {[%clk
0:00:47.4]} 28... Qa4 {[%clk 0:00:19.3]} 29. gxf7 {[%clk 0:00:47]} 29... Rf8
{[%clk 0:00:19.4]} 30. Bh3 {[%clk 0:00:32]} 30... Bxd4 {[%clk 0:00:11.4]} 31.
Qc2 {[%clk 0:00:27.2]} 31... Qa1+ {[%clk 0:00:10.1]} 32. Nb1 {[%clk 0:00:15.7]}
32... Be3+ {[%clk 0:00:09.5]} 33. Rd2 {[%clk 0:00:16.4]} 33... Bxd2+ {[%clk
0:00:09.4]} 34. Qxd2 {[%clk 0:00:17.1]} 34... Rxf7 {[%clk 0:00:07.7]} 35. g5
{[%clk 0:00:16.2]} 35... Qa5 {[%clk 0:00:04.9]} 36. Re1 {[%clk 0:00:08.2]} 36...
Kd8 {[%clk 0:00:04.4]} 37. Bh4 {[%clk 0:00:05.7]} 37... Rg7 {[%clk 0:00:03.4]}
38. g6+ {[%clk 0:00:05.6]} 38... Kc7 {[%clk 0:00:03.3]} 39. Qf4+ {[%clk
0:00:05.4]} 39... Rd6 {[%clk 0:00:02.7]} 40. Bg3 {[%clk 0:00:04.9]} 40... Rxg6
{[%clk 0:00:02.8]} 41. Bxd7 {[%clk 0:00:02.9]} 41... Kxd7 {[%clk 0:00:02.3]} 42.
Qf7+ {[%clk 0:00:03.5]} 42... Kc6 {[%clk 0:00:02.6]} 43. Bxd6 {[%clk 0:00:04.1]}
43... Rxd6 {[%clk 0:00:03.2]} 44. Qe8+ {[%clk 0:00:04.7]} 44... Kb6 {[%clk
0:00:02.9]} 45. Re6 {[%clk 0:00:04.3]} 45... Qc5 {[%clk 0:00:02.9]} 46. Qd8+
{[%clk 0:00:03.6]} 46... Kc6 {[%clk 0:00:02]} 47. Qc8+ {[%clk 0:00:04.2]} 1-0

[Event "*** SCC Grand Prix: Titled Tuesday Blitz"]
[Site "Chess.com"]
[Date "2020.08.11"]
[Round "3"]
[White "RobertoJBM"]
[Black "amintabatabaei"]
[Result "1/2-1/2"]
[WhiteElo "2717"]
[BlackElo "3026"]
[TimeControl "180+1"]
[EndTime "10:30:19 PDT"]
[Termination "Game drawn - insufficient material"]

1. d4 {[%clk 0:03:00.9]} 1... Nf6 {[%clk 0:02:59.4]} 2. c4 {[%clk 0:03:00.5]}
2... g6 {[%clk 0:02:59.8]} 3. Nc3 {[%clk 0:03:00]} 3... d5 {[%clk 0:02:59.9]} 4.
Nf3 {[%clk 0:02:56.8]} 4... Bg7 {[%clk 0:03:00]} 5. Qb3 {[%clk 0:02:56]} 5...
dxc4 {[%clk 0:02:59.6]} 6. Qxc4 {[%clk 0:02:56.9]} 6... O-O {[%clk 0:02:59.9]}
7. e4 {[%clk 0:02:57.1]} 7... Nc6 {[%clk 0:03:00.2]} 8. Be3 {[%clk 0:02:55.6]}
8... Bg4 {[%clk 0:02:58.6]} 9. Be2 {[%clk 0:02:53.5]} 9... Bxf3 {[%clk
0:01:36.5]} 10. gxf3 {[%clk 0:02:44.3]} 10... e5 {[%clk 0:01:36.6]} 11. dxe5
{[%clk 0:02:27.6]} 11... Nxe5 {[%clk 0:01:37.5]} 12. Qd4 {[%clk 0:02:04]} 12...
Qxd4 {[%clk 0:01:33.2]} 13. Bxd4 {[%clk 0:02:04.9]} 13... Nh5 {[%clk 0:01:34.1]}
14. O-O-O {[%clk 0:02:03.6]} 14... Nf4 {[%clk 0:01:30.3]} 15. Bxe5 {[%clk
0:01:54.2]} 15... Bxe5 {[%clk 0:01:31.2]} 16. Bc4 {[%clk 0:01:54.8]} 16... c6
{[%clk 0:01:30.2]} 17. Ne2 {[%clk 0:01:52.8]} 17... Rfd8 {[%clk 0:01:21.1]} 18.
Nxf4 {[%clk 0:01:47.7]} 18... Bxf4+ {[%clk 0:01:20.7]} 19. Kc2 {[%clk 0:01:48]}
19... Kg7 {[%clk 0:01:21.2]} 20. h3 {[%clk 0:01:45.4]} 20... Kf6 {[%clk
0:01:19.7]} 21. Rxd8 {[%clk 0:01:43.6]} 21... Rxd8 {[%clk 0:01:20.6]} 22. Rd1
{[%clk 0:01:44]} 22... Rxd1 {[%clk 0:01:20.4]} 23. Kxd1 {[%clk 0:01:44.9]} 23...
h5 {[%clk 0:01:19.2]} 24. Ke2 {[%clk 0:01:44.4]} 24... Ke7 {[%clk 0:01:18.8]}
25. b3 {[%clk 0:01:39.8]} 25... b5 {[%clk 0:01:16.7]} 26. Bd3 {[%clk 0:01:40]}
26... Kf6 {[%clk 0:01:17.2]} 27. Bc2 {[%clk 0:01:32.9]} 27... Kg5 {[%clk
0:01:16.4]} 28. Kf1 {[%clk 0:01:32.3]} 28... Be5 {[%clk 0:01:16.1]} 29. a4
{[%clk 0:01:30.8]} 29... a6 {[%clk 0:01:14.7]} 30. axb5 {[%clk 0:01:30.2]} 30...
axb5 {[%clk 0:01:15.6]} 31. Bd3 {[%clk 0:01:25.5]} 31... Kf4 {[%clk 0:01:15.8]}
32. Ke2 {[%clk 0:01:24.3]} 32... Bf6 {[%clk 0:01:15]} 33. Bc2 {[%clk 0:01:24.1]}
33... Ke5 {[%clk 0:01:13.9]} 34. Ke3 {[%clk 0:01:18.5]} 34... Bg5+ {[%clk
0:01:13.9]} 35. Kd3 {[%clk 0:01:17.3]} 35... Bd8 {[%clk 0:01:14.8]} 36. b4
{[%clk 0:01:10.6]} 36... Be7 {[%clk 0:00:36.2]} 37. Kc3 {[%clk 0:01:04.9]} 37...
Kf4 {[%clk 0:00:34.8]} 38. Bb3 {[%clk 0:01:05.1]} 38... f5 {[%clk 0:00:19.4]}
39. Bf7 {[%clk 0:01:01.1]} 39... Kxf3 {[%clk 0:00:16]} 40. exf5 {[%clk
0:00:51.1]} 40... Bf6+ {[%clk 0:00:12.6]} 41. Kd3 {[%clk 0:00:50.4]} 41... gxf5
{[%clk 0:00:04.1]} 42. Bxh5+ {[%clk 0:00:46.9]} 42... Kxf2 {[%clk 0:00:04.7]}
43. Be8 {[%clk 0:00:47.8]} 43... Be7 {[%clk 0:00:02.5]} 44. Kc3 {[%clk
0:00:47.5]} 44... Bf6+ {[%clk 0:00:02.3]} 45. Kb3 {[%clk 0:00:46.3]} 45... Kg3
{[%clk 0:00:02]} 46. Bxc6 {[%clk 0:00:43.5]} 46... f4 {[%clk 0:00:02.5]} 47.
Bxb5 {[%clk 0:00:43.7]} 47... Kxh3 {[%clk 0:00:03.1]} 48. Bc6 {[%clk 0:00:42.5]}
48... Kg3 {[%clk 0:00:03.1]} 49. b5 {[%clk 0:00:42.5]} 49... Bd8 {[%clk
0:00:04]} 50. Kc4 {[%clk 0:00:42.5]} 50... Bb6 {[%clk 0:00:04.9]} 51. Kd3 {[%clk
0:00:42.8]} 51... Kf2 {[%clk 0:00:04.7]} 52. Ke4 {[%clk 0:00:41.7]} 52... Kg3
{[%clk 0:00:05.6]} 53. Kd3 {[%clk 0:00:41.4]} 53... Kf2 {[%clk 0:00:05.8]} 54.
Bb7 {[%clk 0:00:41.4]} 54... Bc7 {[%clk 0:00:04.8]} 55. Be4 {[%clk 0:00:40.2]}
55... Kg3 {[%clk 0:00:04.5]} 56. Ke2 {[%clk 0:00:39.6]} 56... Bb6 {[%clk
0:00:05.4]} 57. Bf3 {[%clk 0:00:39.6]} 57... Be3 {[%clk 0:00:05.4]} 58. Bb7
{[%clk 0:00:40.5]} 58... Bb6 {[%clk 0:00:06.3]} 59. Ba8 {[%clk 0:00:40.4]} 59...
Bc5 {[%clk 0:00:06.8]} 60. Kd3 {[%clk 0:00:40]} 60... Bb6 {[%clk 0:00:07.7]} 61.
Be4 {[%clk 0:00:37.8]} 61... Bc5 {[%clk 0:00:07.9]} 62. Kc4 {[%clk 0:00:38.2]}
62... Bb6 {[%clk 0:00:08.8]} 63. Kd5 {[%clk 0:00:38.7]} 63... f3 {[%clk
0:00:09.2]} 64. Bxf3 {[%clk 0:00:38.7]} 64... Kxf3 {[%clk 0:00:10.1]} 65. Kd6
{[%clk 0:00:39.4]} 65... Be3 {[%clk 0:00:10.9]} 66. Kc6 {[%clk 0:00:40.3]} 66...
Ke4 {[%clk 0:00:11.4]} 67. b6 {[%clk 0:00:40.5]} 67... Bxb6 {[%clk 0:00:11.7]}
1/2-1/2

[Event "*** SCC Grand Prix: Titled Tuesday Blitz"]
[Site "Chess.com"]
[Date "2020.08.11"]
[Round "3"]
[White "Lenyas66"]
[Black "Pultis"]
[Result "1-0"]
[WhiteElo "2486"]
[BlackElo "2732"]
[TimeControl "180+1"]
[EndTime "10:30:20 PDT"]
[Termination "Lenyas66 won by resignation"]

1. e4 {[%clk 0:03:00.9]} 1... c6 {[%clk 0:02:59.3]} 2. d4 {[%clk 0:03:00.4]}
2... d5 {[%clk 0:02:59.8]} 3. exd5 {[%clk 0:03:00.7]} 3... cxd5 {[%clk
0:03:00.7]} 4. Bd3 {[%clk 0:03:00.7]} 4... Nc6 {[%clk 0:03:00.4]} 5. c3 {[%clk
0:03:00.9]} 5... Nf6 {[%clk 0:02:56.8]} 6. Bf4 {[%clk 0:03:00.6]} 6... g6 {[%clk
0:02:54.6]} 7. Nf3 {[%clk 0:03:00.1]} 7... Bg7 {[%clk 0:02:54.6]} 8. O-O {[%clk
0:02:59.9]} 8... O-O {[%clk 0:02:55.2]} 9. Ne5 {[%clk 0:02:52.4]} 9... Nd7
{[%clk 0:02:48.6]} 10. Nxd7 {[%clk 0:02:45.9]} 10... Bxd7 {[%clk 0:02:45.8]} 11.
Re1 {[%clk 0:02:46]} 11... Re8 {[%clk 0:02:45.3]} 12. Nd2 {[%clk 0:02:46.1]}
12... e5 {[%clk 0:02:42.2]} 13. dxe5 {[%clk 0:02:45.2]} 13... Nxe5 {[%clk
0:02:43.1]} 14. Be2 {[%clk 0:02:40.6]} 14... Bf5 {[%clk 0:02:26.1]} 15. Qb3
{[%clk 0:02:31.6]} 15... Qb6 {[%clk 0:01:51.7]} 16. Qxb6 {[%clk 0:02:23.4]}
16... axb6 {[%clk 0:01:52.6]} 17. Bb5 {[%clk 0:02:23.1]} 17... Re6 {[%clk
0:01:50.7]} 18. h3 {[%clk 0:02:04.3]} 18... Nd3 {[%clk 0:01:31]} 19. Bxd3 {[%clk
0:01:56.6]} 19... Bxd3 {[%clk 0:01:31.9]} 20. Nf3 {[%clk 0:01:53]} 20... Re4
{[%clk 0:01:25.6]} 21. Be3 {[%clk 0:01:52.1]} 21... b5 {[%clk 0:01:01.1]} 22. a3
{[%clk 0:01:49.6]} 22... Rea4 {[%clk 0:00:50.5]} 23. Bd4 {[%clk 0:01:48.8]}
23... Be4 {[%clk 0:00:42.1]} 24. Bxg7 {[%clk 0:01:47.4]} 24... Bxf3 {[%clk
0:00:41.2]} 25. Bd4 {[%clk 0:01:47.1]} 25... Be4 {[%clk 0:00:41]} 26. f3 {[%clk
0:01:45.6]} 26... Bf5 {[%clk 0:00:40.8]} 27. Rad1 {[%clk 0:01:43.4]} 27... Be6
{[%clk 0:00:40.5]} 28. g4 {[%clk 0:01:41.4]} 28... Rc4 {[%clk 0:00:39.3]} 29.
Kf2 {[%clk 0:01:40.1]} 29... Rac8 {[%clk 0:00:35.8]} 30. h4 {[%clk 0:01:38.9]}
30... Kf8 {[%clk 0:00:32.6]} 31. h5 {[%clk 0:01:38.8]} 31... gxh5 {[%clk
0:00:33.5]} 32. gxh5 {[%clk 0:01:37.6]} 32... Ke8 {[%clk 0:00:34.4]} 33. Rg1
{[%clk 0:01:34.4]} 33... Ke7 {[%clk 0:00:32.2]} 34. Rg7 {[%clk 0:01:31.7]} 34...
h6 {[%clk 0:00:31.6]} 35. Rh7 {[%clk 0:01:24.7]} 35... Rg8 {[%clk 0:00:26.9]}
36. Rxh6 {[%clk 0:01:23.3]} 36... Kd7 {[%clk 0:00:22.1]} 37. Rg1 {[%clk
0:01:20.4]} 37... Rcc8 {[%clk 0:00:16.9]} 38. Rh7 {[%clk 0:01:12.4]} 38... Rxg1
{[%clk 0:00:15.7]} 39. Kxg1 {[%clk 0:01:12.3]} 39... Rg8+ {[%clk 0:00:16.5]} 40.
Kf2 {[%clk 0:01:12.3]} 40... Ke7 {[%clk 0:00:17.4]} 41. Rh6 {[%clk 0:01:04.7]}
41... Bf5 {[%clk 0:00:17.5]} 42. Bf6+ {[%clk 0:01:00.7]} 42... Kd7 {[%clk
0:00:17.3]} 43. Be5 {[%clk 0:00:56.3]} 43... Bh3 {[%clk 0:00:16.7]} 44. Bg3
{[%clk 0:00:48.2]} 44... Be6 {[%clk 0:00:16.5]} 45. Rf6 {[%clk 0:00:44.9]} 45...
Kc6 {[%clk 0:00:16.1]} 46. h6 {[%clk 0:00:44]} 46... Rh8 {[%clk 0:00:16.5]} 47.
Be5 {[%clk 0:00:43.2]} 47... Rh7 {[%clk 0:00:17]} 48. Kg3 {[%clk 0:00:40.5]}
48... Kc5 {[%clk 0:00:17.3]} 49. Kh4 {[%clk 0:00:39.7]} 49... Kc4 {[%clk
0:00:18.2]} 50. Kg5 {[%clk 0:00:36]} 50... Kb3 {[%clk 0:00:18.2]} 51. Rxe6
{[%clk 0:00:30.4]} 51... fxe6 {[%clk 0:00:19.1]} 52. Kg6 {[%clk 0:00:30.4]}
52... Rxh6+ {[%clk 0:00:19.1]} 53. Kxh6 {[%clk 0:00:30.1]} 53... Kxb2 {[%clk
0:00:20]} 54. Kg6 {[%clk 0:00:27.3]} 54... Kxa3 {[%clk 0:00:19.6]} 55. Kf6
{[%clk 0:00:27.5]} 55... b4 {[%clk 0:00:20]} 56. cxb4 {[%clk 0:00:27]} 56...
Kxb4 {[%clk 0:00:20.2]} 57. Kxe6 {[%clk 0:00:27]} 57... Kc4 {[%clk 0:00:21.1]}
58. f4 {[%clk 0:00:27.2]} 58... d4 {[%clk 0:00:21.3]} 59. f5 {[%clk 0:00:27.5]}
59... d3 {[%clk 0:00:21.6]} 60. Bf4 {[%clk 0:00:27.8]} 60... b5 {[%clk
0:00:13.9]} 61. f6 {[%clk 0:00:27.9]} 61... d2 {[%clk 0:00:14.8]} 62. Bxd2
{[%clk 0:00:27.4]} 62... b4 {[%clk 0:00:14.8]} 63. f7 {[%clk 0:00:24.5]} 63...
b3 {[%clk 0:00:15.7]} 64. Bc1 {[%clk 0:00:23.6]} 64... Kc3 {[%clk 0:00:16.1]}
65. f8=Q {[%clk 0:00:23.7]} 65... Kc2 {[%clk 0:00:17]} 66. Qc5+ {[%clk
0:00:23.5]} 66... Kb1 {[%clk 0:00:17.9]} 67. Qa3 {[%clk 0:00:21.5]} 1-0